Workbook

Sheet Приходи (продажби)
B1: Дванадесет месеца | AD1: Име на фирма
B2: ПРОЕКТИРАНЕ НА ПЕЧАЛБА И ЗАГУБА | AB2: ФИНАНСОВАТА ГОДИНА ЗАПОЧВА НА: | AC2: ЯНУ | AD2: =YEAR(TODAY()) -> 2017
D3: =UPPER(TEXT(DATE(НачалнаГодинаФГ,№МесецФГ,1),"mmm yy г.")) -> ЯНУ 17 Г. | E3: =UPPER(TEXT(DATE(НачалнаГодинаФГ,№МесецФГ+1,1),"mmm yy г.")) -> ФЕВ 17 Г. | F3: =UPPER(TEXT(DATE(НачалнаГодинаФГ,№МесецФГ+2,1),"mmm yy г.")) -> МАР 17 Г. | G3: =UPPER(TEXT(DATE(НачалнаГодинаФГ,№МесецФГ+3,1),"mmm yy г.")) -> АПР 17 Г. | H3: =UPPER(TEXT(DATE(НачалнаГодинаФГ,№МесецФГ+4,1),"mmm yy г.")) -> МАЙ 17 Г. | I3: =UPPER(TEXT(DATE(НачалнаГодинаФГ,№МесецФГ+5,1),"mmm yy г.")) -> ЮНИ 17 Г. | J3: =UPPER(TEXT(DATE(НачалнаГодинаФГ,№МесецФГ+6,1),"mmm yy г.")) -> ЮЛИ 17 Г. | K3: =UPPER(TEXT(DATE(НачалнаГодинаФГ,№МесецФГ+7,1),"mmm yy г.")) -> АВГ 17 Г. | L3: =UPPER(TEXT(DATE(НачалнаГодинаФГ,№МесецФГ+8,1),"mmm yy г.")) -> СЕП 17 Г. | M3: =UPPER(TEXT(DATE(НачалнаГодинаФГ,№МесецФГ+9,1),"mmm yy г.")) -> ОКТ 17 Г. | N3: =UPPER(TEXT(DATE(НачалнаГодинаФГ,№МесецФГ+10,1),"mmm yy г.")) -> НОЕ 17 Г. | O3: =UPPER(TEXT(DATE(НачалнаГодинаФГ,№МесецФГ+11,1),"mmm yy г.")) -> ДЕК 17 Г. | P3: ГОДИШНО | Q3: ИНД % | R3: =LEFT(D3,3)&" % " -> ЯНУ % | S3: =LEFT(E3,3)&" % " -> ФЕВ % | T3: МАР % | U3: АПР % | V3: МАЙ % | W3: ЮНИ % | X3: ЮЛИ % | Y3: АВГ % | Z3: СЕП % | AA3: ОКТ % | AB3: НОЕ % | AC3: ДЕК % | AD3: % ГОДИШЕН
B4: ПРИХОДИ (ПРОДАЖБИ) | C4: ТЕНДЕНЦИЯ | D4: Яну | E4: Фев | F4: Мар | G4: Апр | H4: Май | I4: Юни | J4: Юли | K4: Авг | L4: Сеп | M4: Окт | N4: Ное | O4: Дек | P4: Годишно | Q4: инд % | R4: яну % | S4: фев % | T4: мар % | U4: апр % | V4: май % | W4: юни % | X4: юли % | Y4: авг % | Z4: сеп % | AA4: окт % | AB4: ное % | AC4: дек % | AD4: годишен %
B5: Приходи 1 | D5: 186 лв. | E5: 108 лв. | F5: 92 лв. | G5: 122 лв. | H5: 190 лв. | I5: 71 лв. | J5: 21 лв. | K5: 37 лв. | L5: 24 лв. | M5: 178 лв. | N5: 92 лв. | O5: 97 лв. | P5: =SUM(Приходи[[#This Row],[Яну]:[Дек]]) -> 1,218 лв. | Q5: 12% | R5: =IFERROR(Приходи[[#This Row],[Яну]]/Приходи[[#Totals],[Яну]],"-") -> 30% | S5: =IFERROR(Приходи[[#This Row],[Фев]]/Приходи[[#Totals],[Фев]],"-") -> 15% | T5: =IFERROR(Приходи[[#This Row],[Мар]]/Приходи[[#Totals],[Мар]],"-") -> 11% | U5: =IFERROR(Приходи[[#This Row],[Мар]]/Приходи[[#Totals],[Мар]],"-") -> 11% | V5: =IFERROR(Приходи[[#This Row],[Апр]]/Приходи[[#Totals],[Апр]],"-") -> 20% | W5: =IFERROR(Приходи[[#This Row],[Апр]]/Приходи[[#Totals],[Апр]],"-") -> 20% | X5: =IFERROR(Приходи[[#This Row],[Май]]/Приходи[[#Totals],[Май]],"-") -> 23% | Y5: =IFERROR(Приходи[[#This Row],[Май]]/Приходи[[#Totals],[Май]],"-") -> 23% | Z5: =IFERROR(Приходи[[#This Row],[Юни]]/Приходи[[#Totals],[Юни]],"-") -> 12% | AA5: =IFERROR(Приходи[[#This Row],[Юни]]/Приходи[[#Totals],[Юни]],"-") -> 12% | AB5: =IFERROR(Приходи[[#This Row],[Юли]]/Приходи[[#Totals],[Юли]],"-") -> 4% | AC5: =IFERROR(Приходи[[#This Row],[Юли]]/Приходи[[#Totals],[Юли]],"-") -> 4% | AD5: =IFERROR(Приходи[[#This Row],[Годишно]]/Приходи[[#Totals],[Годишно]],"-") -> 14%
B6: Приходи 2 | D6: 15 лв. | E6: 16 лв. | F6: 198 лв. | G6: 44 лв. | H6: 25 лв. | I6: 68 лв. | J6: 43 лв. | K6: 119 лв. | L6: 37 лв. | M6: 118 лв. | N6: 29 лв. | O6: 171 лв. | P6: =SUM(Приходи[[#This Row],[Яну]:[Дек]]) -> 883 лв. | Q6: 18% | R6: =IFERROR(Приходи[[#This Row],[Яну]]/Приходи[[#Totals],[Яну]],"-") -> 2% | S6: =IFERROR(Приходи[[#This Row],[Фев]]/Приходи[[#Totals],[Фев]],"-") -> 2% | T6: =IFERROR(Приходи[[#This Row],[Мар]]/Приходи[[#Totals],[Мар]],"-") -> 24% | U6: =IFERROR(Приходи[[#This Row],[Мар]]/Приходи[[#Totals],[Мар]],"-") -> 24% | V6: =IFERROR(Приходи[[#This Row],[Апр]]/Приходи[[#Totals],[Апр]],"-") -> 7% | W6: =IFERROR(Приходи[[#This Row],[Апр]]/Приходи[[#Totals],[Апр]],"-") -> 7% | X6: =IFERROR(Приходи[[#This Row],[Май]]/Приходи[[#Totals],[Май]],"-") -> 3% | Y6: =IFERROR(Приходи[[#This Row],[Май]]/Приходи[[#Totals],[Май]],"-") -> 3% | Z6: =IFERROR(Приходи[[#This Row],[Юни]]/Приходи[[#Totals],[Юни]],"-") -> 12% | AA6: =IFERROR(Приходи[[#This Row],[Юни]]/Приходи[[#Totals],[Юни]],"-") -> 12% | AB6: =IFERROR(Приходи[[#This Row],[Юли]]/Приходи[[#Totals],[Юли]],"-") -> 7% | AC6: =IFERROR(Приходи[[#This Row],[Юли]]/Приходи[[#Totals],[Юли]],"-") -> 7% | AD6: =IFERROR(Приходи[[#This Row],[Годишно]]/Приходи[[#Totals],[Годишно]],"-") -> 10%
B7: Приходи 3 | D7: 166 лв. | E7: 185 лв. | F7: 89 лв. | G7: 170 лв. | H7: 131 лв. | I7: 70 лв. | J7: 50 лв. | K7: 149 лв. | L7: 179 лв. | M7: 104 лв. | N7: 119 лв. | O7: 187 лв. | P7: =SUM(Приходи[[#This Row],[Яну]:[Дек]]) -> 1,599 лв. | Q7: 19% | R7: =IFERROR(Приходи[[#This Row],[Яну]]/Приходи[[#Totals],[Яну]],"-") -> 27% | S7: =IFERROR(Приходи[[#This Row],[Фев]]/Приходи[[#Totals],[Фев]],"-") -> 25% | T7: =IFERROR(Приходи[[#This Row],[Мар]]/Приходи[[#Totals],[Мар]],"-") -> 11% | U7: =IFERROR(Приходи[[#This Row],[Мар]]/Приходи[[#Totals],[Мар]],"-") -> 11% | V7: =IFERROR(Приходи[[#This Row],[Апр]]/Приходи[[#Totals],[Апр]],"-") -> 28% | W7: =IFERROR(Приходи[[#This Row],[Апр]]/Приходи[[#Totals],[Апр]],"-") -> 28% | X7: =IFERROR(Приходи[[#This Row],[Май]]/Приходи[[#Totals],[Май]],"-") -> 16% | Y7: =IFERROR(Приходи[[#This Row],[Май]]/Приходи[[#Totals],[Май]],"-") -> 16% | Z7: =IFERROR(Приходи[[#This Row],[Юни]]/Приходи[[#Totals],[Юни]],"-") -> 12% | AA7: =IFERROR(Приходи[[#This Row],[Юни]]/Приходи[[#Totals],[Юни]],"-") -> 12% | AB7: =IFERROR(Приходи[[#This Row],[Юли]]/Приходи[[#Totals],[Юли]],"-") -> 8% | AC7: =IFERROR(Приходи[[#This Row],[Юли]]/Приходи[[#Totals],[Юли]],"-") -> 8% | AD7: =IFERROR(Приходи[[#This Row],[Годишно]]/Приходи[[#Totals],[Годишно]],"-") -> 18%
B8: Приходи 4 | D8: 21 лв. | E8: 113 лв. | F8: 83 лв. | G8: 17 лв. | H8: 130 лв. | I8: 26 лв. | J8: 167 лв. | K8: 102 лв. | L8: 82 лв. | M8: 33 лв. | N8: 88 лв. | O8: 193 лв. | P8: =SUM(Приходи[[#This Row],[Яну]:[Дек]]) -> 1,055 лв. | Q8: 11% | R8: =IFERROR(Приходи[[#This Row],[Яну]]/Приходи[[#Totals],[Яну]],"-") -> 3% | S8: =IFERROR(Приходи[[#This Row],[Фев]]/Приходи[[#Totals],[Фев]],"-") -> 15% | T8: =IFERROR(Приходи[[#This Row],[Мар]]/Приходи[[#Totals],[Мар]],"-") -> 10% | U8: =IFERROR(Приходи[[#This Row],[Мар]]/Приходи[[#Totals],[Мар]],"-") -> 10% | V8: =IFERROR(Приходи[[#This Row],[Апр]]/Приходи[[#Totals],[Апр]],"-") -> 3% | W8: =IFERROR(Приходи[[#This Row],[Апр]]/Приходи[[#Totals],[Апр]],"-") -> 3% | X8: =IFERROR(Приходи[[#This Row],[Май]]/Приходи[[#Totals],[Май]],"-") -> 16% | Y8: =IFERROR(Приходи[[#This Row],[Май]]/Приходи[[#Totals],[Май]],"-") -> 16% | Z8: =IFERROR(Приходи[[#This Row],[Юни]]/Приходи[[#Totals],[Юни]],"-") -> 4% | AA8: =IFERROR(Приходи[[#This Row],[Юни]]/Приходи[[#Totals],[Юни]],"-") -> 4% | AB8: =IFERROR(Приходи[[#This Row],[Юли]]/Приходи[[#Totals],[Юли]],"-") -> 28% | AC8: =IFERROR(Приходи[[#This Row],[Юли]]/Приходи[[#Totals],[Юли]],"-") -> 28% | AD8: =IFERROR(Приходи[[#This Row],[Годишно]]/Приходи[[#Totals],[Годишно]],"-") -> 12%
B9: Приходи 5 | D9: 70 лв. | E9: 160 лв. | F9: 125 лв. | G9: 84 лв. | H9: 191 лв. | I9: 97 лв. | J9: 52 лв. | K9: 45 лв. | L9: 173 лв. | M9: 136 лв. | N9: 144 лв. | O9: 167 лв. | P9: =SUM(Приходи[[#This Row],[Яну]:[Дек]]) -> 1,444 лв. | Q9: 20% | R9: =IFERROR(Приходи[[#This Row],[Яну]]/Приходи[[#Totals],[Яну]],"-") -> 11% | S9: =IFERROR(Приходи[[#This Row],[Фев]]/Приходи[[#Totals],[Фев]],"-") -> 22% | T9: =IFERROR(Приходи[[#This Row],[Мар]]/Приходи[[#Totals],[Мар]],"-") -> 15% | U9: =IFERROR(Приходи[[#This Row],[Мар]]/Приходи[[#Totals],[Мар]],"-") -> 15% | V9: =IFERROR(Приходи[[#This Row],[Апр]]/Приходи[[#Totals],[Апр]],"-") -> 14% | W9: =IFERROR(Приходи[[#This Row],[Апр]]/Приходи[[#Totals],[Апр]],"-") -> 14% | X9: =IFERROR(Приходи[[#This Row],[Май]]/Приходи[[#Totals],[Май]],"-") -> 24% | Y9: =IFERROR(Приходи[[#This Row],[Май]]/Приходи[[#Totals],[Май]],"-") -> 24% | Z9: =IFERROR(Приходи[[#This Row],[Юни]]/Приходи[[#Totals],[Юни]],"-") -> 17% | AA9: =IFERROR(Приходи[[#This Row],[Юни]]/Приходи[[#Totals],[Юни]],"-") -> 17% | AB9: =IFERROR(Приходи[[#This Row],[Юли]]/Приходи[[#Totals],[Юли]],"-") -> 9% | AC9: =IFERROR(Приходи[[#This Row],[Юли]]/Приходи[[#Totals],[Юли]],"-") -> 9% | AD9: =IFERROR(Приходи[[#This Row],[Годишно]]/Приходи[[#Totals],[Годишно]],"-") -> 17%
B10: Приходи 6 | D10: 61 лв. | E10: 99 лв. | F10: 70 лв. | G10: 162 лв. | H10: 28 лв. | I10: 163 лв. | J10: 101 лв. | K10: 103 лв. | L10: 78 лв. | M10: 33 лв. | N10: 162 лв. | O10: 159 лв. | P10: =SUM(Приходи[[#This Row],[Яну]:[Дек]]) -> 1,219 лв. | Q10: 10% | R10: =IFERROR(Приходи[[#This Row],[Яну]]/Приходи[[#Totals],[Яну]],"-") -> 10% | S10: =IFERROR(Приходи[[#This Row],[Фев]]/Приходи[[#Totals],[Фев]],"-") -> 13% | T10: =IFERROR(Приходи[[#This Row],[Мар]]/Приходи[[#Totals],[Мар]],"-") -> 9% | U10: =IFERROR(Приходи[[#This Row],[Мар]]/Приходи[[#Totals],[Мар]],"-") -> 9% | V10: =IFERROR(Приходи[[#This Row],[Апр]]/Приходи[[#Totals],[Апр]],"-") -> 27% | W10: =IFERROR(Приходи[[#This Row],[Апр]]/Приходи[[#Totals],[Апр]],"-") -> 27% | X10: =IFERROR(Приходи[[#This Row],[Май]]/Приходи[[#Totals],[Май]],"-") -> 3% | Y10: =IFERROR(Приходи[[#This Row],[Май]]/Приходи[[#Totals],[Май]],"-") -> 3% | Z10: =IFERROR(Приходи[[#This Row],[Юни]]/Приходи[[#Totals],[Юни]],"-") -> 28% | AA10: =IFERROR(Приходи[[#This Row],[Юни]]/Приходи[[#Totals],[Юни]],"-") -> 28% | AB10: =IFERROR(Приходи[[#This Row],[Юли]]/Приходи[[#Totals],[Юли]],"-") -> 17% | AC10: =IFERROR(Приходи[[#This Row],[Юли]]/Приходи[[#Totals],[Юли]],"-") -> 17% | AD10: =IFERROR(Приходи[[#This Row],[Годишно]]/Приходи[[#Totals],[Годишно]],"-") -> 14%
B11: Приходи 7 | D11: 105 лв. | E11: 55 лв. | F11: 163 лв. | G11: 12 лв. | H11: 117 лв. | I11: 83 лв. | J11: 163 лв. | K11: 120 лв. | L11: 171 лв. | M11: 79 лв. | N11: 105 лв. | O11: 69 лв. | P11: =SUM(Приходи[[#This Row],[Яну]:[Дек]]) -> 1,242 лв. | Q11: 10% | R11: =IFERROR(Приходи[[#This Row],[Яну]]/Приходи[[#Totals],[Яну]],"-") -> 17% | S11: =IFERROR(Приходи[[#This Row],[Фев]]/Приходи[[#Totals],[Фев]],"-") -> 7% | T11: =IFERROR(Приходи[[#This Row],[Мар]]/Приходи[[#Totals],[Мар]],"-") -> 20% | U11: =IFERROR(Приходи[[#This Row],[Мар]]/Приходи[[#Totals],[Мар]],"-") -> 20% | V11: =IFERROR(Приходи[[#This Row],[Апр]]/Приходи[[#Totals],[Апр]],"-") -> 2% | W11: =IFERROR(Приходи[[#This Row],[Апр]]/Приходи[[#Totals],[Апр]],"-") -> 2% | X11: =IFERROR(Приходи[[#This Row],[Май]]/Приходи[[#Totals],[Май]],"-") -> 14% | Y11: =IFERROR(Приходи[[#This Row],[Май]]/Приходи[[#Totals],[Май]],"-") -> 14% | Z11: =IFERROR(Приходи[[#This Row],[Юни]]/Приходи[[#Totals],[Юни]],"-") -> 14% | AA11: =IFERROR(Приходи[[#This Row],[Юни]]/Приходи[[#Totals],[Юни]],"-") -> 14% | AB11: =IFERROR(Приходи[[#This Row],[Юли]]/Приходи[[#Totals],[Юли]],"-") -> 27% | AC11: =IFERROR(Приходи[[#This Row],[Юли]]/Приходи[[#Totals],[Юли]],"-") -> 27% | AD11: =IFERROR(Приходи[[#This Row],[Годишно]]/Приходи[[#Totals],[Годишно]],"-") -> 14%
B12: ОБЩИ ПРОДАЖБИ | D12: =SUBTOTAL(109,Приходи[Яну]) -> 624 лв. | E12: =SUBTOTAL(109,Приходи[Фев]) -> 736 лв. | F12: =SUBTOTAL(109,Приходи[Мар]) -> 820 лв. | G12: =SUBTOTAL(109,Приходи[Апр]) -> 611 лв. | H12: =SUBTOTAL(109,Приходи[Май]) -> 812 лв. | I12: =SUBTOTAL(109,Приходи[Юни]) -> 578 лв. | J12: =SUBTOTAL(109,Приходи[Юли]) -> 597 лв. | K12: =SUBTOTAL(109,Приходи[Авг]) -> 675 лв. | L12: =SUBTOTAL(109,Приходи[Сеп]) -> 744 лв. | M12: =SUBTOTAL(109,Приходи[Окт]) -> 681 лв. | N12: =SUBTOTAL(109,Приходи[Ное]) -> 739 лв. | O12: =SUBTOTAL(109,Приходи[Дек]) -> 1,043 лв. | P12: =SUBTOTAL(109,Приходи[Годишно]) -> 8,660 лв. | Q12: =SUBTOTAL(109,Приходи[инд %]) -> 100% | R12: =SUBTOTAL(109,Приходи[яну % ]) -> 100% | S12: =SUBTOTAL(109,Приходи[фев % ]) -> 100% | T12: =SUBTOTAL(109,Приходи[мар % ]) -> 100% | U12: =SUBTOTAL(109,Приходи[апр % ]) -> 100% | V12: =SUBTOTAL(109,Приходи[май % ]) -> 100% | W12: =SUBTOTAL(109,Приходи[юни % ]) -> 100% | X12: =SUBTOTAL(109,Приходи[юли % ]) -> 100% | Y12: =SUBTOTAL(109,Приходи[авг % ]) -> 100% | Z12: =SUBTOTAL(109,Приходи[сеп % ]) -> 100% | AA12: =SUBTOTAL(109,Приходи[окт % ]) -> 100% | AB12: =SUBTOTAL(109,Приходи[ное % ]) -> 100% | AC12: =SUBTOTAL(109,Приходи[дек % ]) -> 100% | AD12: =SUBTOTAL(109,Приходи[годишен %]) -> 100%

Sheet Себестойност на продажбите
B1: =Заглавие_на_период_на_проектиране -> Дванадесет месеца | AD1: =Име_на_фирма -> Име на фирма
B2: =Заглавие_на_работен_лист -> ПРОЕКТИРАНЕ НА ПЕЧАЛБА И ЗАГУБА | AB2: ФИНАНСОВА ГОДИНА: | AC2: =НачаленМесецФГ -> ЯНУ | AD2: =НачалнаГодинаФГ -> 2017
D3: =UPPER(TEXT(DATE(НачалнаГодинаФГ,№МесецФГ,1),"mmm yy г.")) -> ЯНУ 17 Г. | E3: =UPPER(TEXT(DATE(НачалнаГодинаФГ,№МесецФГ+1,1),"mmm yy г.")) -> ФЕВ 17 Г. | F3: =UPPER(TEXT(DATE(НачалнаГодинаФГ,№МесецФГ+2,1),"mmm yy г.")) -> МАР 17 Г. | G3: =UPPER(TEXT(DATE(НачалнаГодинаФГ,№МесецФГ+3,1),"mmm yy г.")) -> АПР 17 Г. | H3: =UPPER(TEXT(DATE(НачалнаГодинаФГ,№МесецФГ+4,1),"mmm yy г.")) -> МАЙ 17 Г. | I3: =UPPER(TEXT(DATE(НачалнаГодинаФГ,№МесецФГ+5,1),"mmm yy г.")) -> ЮНИ 17 Г. | J3: =UPPER(TEXT(DATE(НачалнаГодинаФГ,№МесецФГ+6,1),"mmm yy г.")) -> ЮЛИ 17 Г. | K3: =UPPER(TEXT(DATE(НачалнаГодинаФГ,№МесецФГ+7,1),"mmm yy г.")) -> АВГ 17 Г. | L3: =UPPER(TEXT(DATE(НачалнаГодинаФГ,№МесецФГ+8,1),"mmm yy г.")) -> СЕП 17 Г. | M3: =UPPER(TEXT(DATE(НачалнаГодинаФГ,№МесецФГ+9,1),"mmm yy г.")) -> ОКТ 17 Г. | N3: =UPPER(TEXT(DATE(НачалнаГодинаФГ,№МесецФГ+10,1),"mmm yy г.")) -> НОЕ 17 Г. | O3: =UPPER(TEXT(DATE(НачалнаГодинаФГ,№МесецФГ+11,1),"mmm yy г.")) -> ДЕК 17 Г. | P3: ГОДИШНО | Q3: ИНД % | R3: =LEFT(D3,3)&" % " -> ЯНУ % | S3: =LEFT(E3,3)&" % " -> ФЕВ % | T3: МАР % | U3: АПР % | V3: МАЙ % | W3: ЮНИ % | X3: ЮЛИ % | Y3: АВГ % | Z3: СЕП % | AA3: ОКТ % | AB3: НОЕ % | AC3: ДЕК % | AD3: % ГОДИШЕН
B4: СЕБЕСТОЙНОСТ НА ПРОДАЖБИТЕ | C4: ТЕНДЕНЦИЯ | D4: Яну | E4: Фев | F4: Мар | G4: Апр | H4: Май | I4: Юни | J4: Юли | K4: Авг | L4: Сеп | M4: Окт | N4: Ное | O4: Дек | P4: Годишно | Q4: инд % | R4: яну % | S4: фев % | T4: мар % | U4: апр % | V4: май % | W4: юни % | X4: юли % | Y4: авг % | Z4: сеп % | AA4: окт % | AB4: ное % | AC4: дек % | AD4: годишен %
B5: Себестойност 1 | D5: 61 лв. | E5: 78 лв. | F5: 65 лв. | G5: 29 лв. | H5: 125 лв. | I5: 49 лв. | J5: 14 лв. | K5: 26 лв. | L5: 14 лв. | M5: 129 лв. | N5: 60 лв. | O5: 65 лв. | P5: =SUM(СебестойностНаПродажбите[[#This Row],[Яну]:[Дек]]) -> 715 лв. | Q5: 12% | R5: =IFERROR(СебестойностНаПродажбите[[#This Row],[Яну]]/СебестойностНаПродажбите[[#Totals],[Яну]],"-") -> 23% | S5: =IFERROR(СебестойностНаПродажбите[[#This Row],[Фев]]/СебестойностНаПродажбите[[#Totals],[Фев]],"-") -> 22% | T5: =IFERROR(СебестойностНаПродажбите[[#This Row],[Мар]]/СебестойностНаПродажбите[[#Totals],[Мар]],"-") -> 21% | U5: =IFERROR(СебестойностНаПродажбите[[#This Row],[Апр]]/СебестойностНаПродажбите[[#Totals],[Апр]],"-") -> 12% | V5: =IFERROR(СебестойностНаПродажбите[[#This Row],[Май]]/СебестойностНаПродажбите[[#Totals],[Май]],"-") -> 31% | W5: =IFERROR(СебестойностНаПродажбите[[#This Row],[Юни]]/СебестойностНаПродажбите[[#Totals],[Юни]],"-") -> 16% | X5: =IFERROR(СебестойностНаПродажбите[[#This Row],[Юли]]/СебестойностНаПродажбите[[#Totals],[Юли]],"-") -> 5% | Y5: =IFERROR(СебестойностНаПродажбите[[#This Row],[Авг]]/СебестойностНаПродажбите[[#Totals],[Авг]],"-") -> 12% | Z5: =IFERROR(СебестойностНаПродажбите[[#This Row],[Сеп]]/СебестойностНаПродажбите[[#Totals],[Сеп]],"-") -> 3% | AA5: =IFERROR(СебестойностНаПродажбите[[#This Row],[Окт]]/СебестойностНаПродажбите[[#Totals],[Окт]],"-") -> 47% | AB5: =IFERROR(СебестойностНаПродажбите[[#This Row],[Ное]]/СебестойностНаПродажбите[[#Totals],[Ное]],"-") -> 23% | AC5: =IFERROR(СебестойностНаПродажбите[[#This Row],[Дек]]/СебестойностНаПродажбите[[#Totals],[Дек]],"-") -> 14% | AD5: =IFERROR(СебестойностНаПродажбите[[#This Row],[Годишно]]/СебестойностНаПродажбите[[#Totals],[Годишно]],"-") -> 19%
B6: Себестойност 2 | D6: 7 лв. | E6: 5 лв. | F6: 69 лв. | G6: 32 лв. | H6: 11 лв. | I6: 30 лв. | J6: 27 лв. | K6: 32 лв. | L6: 10 лв. | M6: 41 лв. | N6: 13 лв. | O6: 105 лв. | P6: =SUM(СебестойностНаПродажбите[[#This Row],[Яну]:[Дек]]) -> 382 лв. | Q6: 18% | R6: =IFERROR(СебестойностНаПродажбите[[#This Row],[Яну]]/СебестойностНаПродажбите[[#Totals],[Яну]],"-") -> 3% | S6: =IFERROR(СебестойностНаПродажбите[[#This Row],[Фев]]/СебестойностНаПродажбите[[#Totals],[Фев]],"-") -> 1% | T6: =IFERROR(СебестойностНаПродажбите[[#This Row],[Мар]]/СебестойностНаПродажбите[[#Totals],[Мар]],"-") -> 22% | U6: =IFERROR(СебестойностНаПродажбите[[#This Row],[Апр]]/СебестойностНаПродажбите[[#Totals],[Апр]],"-") -> 13% | V6: =IFERROR(СебестойностНаПродажбите[[#This Row],[Май]]/СебестойностНаПродажбите[[#Totals],[Май]],"-") -> 3% | W6: =IFERROR(СебестойностНаПродажбите[[#This Row],[Юни]]/СебестойностНаПродажбите[[#Totals],[Юни]],"-") -> 10% | X6: =IFERROR(СебестойностНаПродажбите[[#This Row],[Юли]]/СебестойностНаПродажбите[[#Totals],[Юли]],"-") -> 9% | Y6: =IFERROR(СебестойностНаПродажбите[[#This Row],[Авг]]/СебестойностНаПродажбите[[#Totals],[Авг]],"-") -> 14% | Z6: =IFERROR(СебестойностНаПродажбите[[#This Row],[Сеп]]/СебестойностНаПродажбите[[#Totals],[Сеп]],"-") -> 2% | AA6: =IFERROR(СебестойностНаПродажбите[[#This Row],[Окт]]/СебестойностНаПродажбите[[#Totals],[Окт]],"-") -> 15% | AB6: =IFERROR(СебестойностНаПродажбите[[#This Row],[Ное]]/СебестойностНаПродажбите[[#Totals],[Ное]],"-") -> 5% | AC6: =IFERROR(СебестойностНаПродажбите[[#This Row],[Дек]]/СебестойностНаПродажбите[[#Totals],[Дек]],"-") -> 23% | AD6: =IFERROR(СебестойностНаПродажбите[[#This Row],[Годишно]]/СебестойностНаПродажбите[[#Totals],[Годишно]],"-") -> 10%
B7: Себестойност 3 | D7: 99 лв. | E7: 95 лв. | F7: 51 лв. | G7: 90 лв. | H7: 21 лв. | I7: 34 лв. | J7: 30 лв. | K7: 24 лв. | L7: 109 лв. | M7: 16 лв. | N7: 21 лв. | O7: 52 лв. | P7: =SUM(СебестойностНаПродажбите[[#This Row],[Яну]:[Дек]]) -> 642 лв. | Q7: 19% | R7: =IFERROR(СебестойностНаПродажбите[[#This Row],[Яну]]/СебестойностНаПродажбите[[#Totals],[Яну]],"-") -> 37% | S7: =IFERROR(СебестойностНаПродажбите[[#This Row],[Фев]]/СебестойностНаПродажбите[[#Totals],[Фев]],"-") -> 27% | T7: =IFERROR(СебестойностНаПродажбите[[#This Row],[Мар]]/СебестойностНаПродажбите[[#Totals],[Мар]],"-") -> 16% | U7: =IFERROR(СебестойностНаПродажбите[[#This Row],[Апр]]/СебестойностНаПродажбите[[#Totals],[Апр]],"-") -> 37% | V7: =IFERROR(СебестойностНаПродажбите[[#This Row],[Май]]/СебестойностНаПродажбите[[#Totals],[Май]],"-") -> 5% | W7: =IFERROR(СебестойностНаПродажбите[[#This Row],[Юни]]/СебестойностНаПродажбите[[#Totals],[Юни]],"-") -> 11% | X7: =IFERROR(СебестойностНаПродажбите[[#This Row],[Юли]]/СебестойностНаПродажбите[[#Totals],[Юли]],"-") -> 10% | Y7: =IFERROR(СебестойностНаПродажбите[[#This Row],[Авг]]/СебестойностНаПродажбите[[#Totals],[Авг]],"-") -> 11% | Z7: =IFERROR(СебестойностНаПродажбите[[#This Row],[Сеп]]/СебестойностНаПродажбите[[#Totals],[Сеп]],"-") -> 26% | AA7: =IFERROR(СебестойностНаПродажбите[[#This Row],[Окт]]/СебестойностНаПродажбите[[#Totals],[Окт]],"-") -> 6% | AB7: =IFERROR(СебестойностНаПродажбите[[#This Row],[Ное]]/СебестойностНаПродажбите[[#Totals],[Ное]],"-") -> 8% | AC7: =IFERROR(СебестойностНаПродажбите[[#This Row],[Дек]]/СебестойностНаПродажбите[[#Totals],[Дек]],"-") -> 11% | AD7: =IFERROR(СебестойностНаПродажбите[[#This Row],[Годишно]]/СебестойностНаПродажбите[[#Totals],[Годишно]],"-") -> 17%
B8: Себестойност 4 | D8: 13 лв. | E8: 28 лв. | F8: 15 лв. | G8: 8 лв. | H8: 84 лв. | I8: 12 лв. | J8: 54 лв. | K8: 72 лв. | L8: 49 лв. | M8: 24 лв. | N8: 60 лв. | O8: 39 лв. | P8: =SUM(СебестойностНаПродажбите[[#This Row],[Яну]:[Дек]]) -> 458 лв. | Q8: 11% | R8: =IFERROR(СебестойностНаПродажбите[[#This Row],[Яну]]/СебестойностНаПродажбите[[#Totals],[Яну]],"-") -> 5% | S8: =IFERROR(СебестойностНаПродажбите[[#This Row],[Фев]]/СебестойностНаПродажбите[[#Totals],[Фев]],"-") -> 8% | T8: =IFERROR(СебестойностНаПродажбите[[#This Row],[Мар]]/СебестойностНаПродажбите[[#Totals],[Мар]],"-") -> 5% | U8: =IFERROR(СебестойностНаПродажбите[[#This Row],[Апр]]/СебестойностНаПродажбите[[#Totals],[Апр]],"-") -> 3% | V8: =IFERROR(СебестойностНаПродажбите[[#This Row],[Май]]/СебестойностНаПродажбите[[#Totals],[Май]],"-") -> 21% | W8: =IFERROR(СебестойностНаПродажбите[[#This Row],[Юни]]/СебестойностНаПродажбите[[#Totals],[Юни]],"-") -> 4% | X8: =IFERROR(СебестойностНаПродажбите[[#This Row],[Юли]]/СебестойностНаПродажбите[[#Totals],[Юли]],"-") -> 18% | Y8: =IFERROR(СебестойностНаПродажбите[[#This Row],[Авг]]/СебестойностНаПродажбите[[#Totals],[Авг]],"-") -> 32% | Z8: =IFERROR(СебестойностНаПродажбите[[#This Row],[Сеп]]/СебестойностНаПродажбите[[#Totals],[Сеп]],"-") -> 12% | AA8: =IFERROR(СебестойностНаПродажбите[[#This Row],[Окт]]/СебестойностНаПродажбите[[#Totals],[Окт]],"-") -> 9% | AB8: =IFERROR(СебестойностНаПродажбите[[#This Row],[Ное]]/СебестойностНаПродажбите[[#Totals],[Ное]],"-") -> 23% | AC8: =IFERROR(СебестойностНаПродажбите[[#This Row],[Дек]]/СебестойностНаПродажбите[[#Totals],[Дек]],"-") -> 9% | AD8: =IFERROR(СебестойностНаПродажбите[[#This Row],[Годишно]]/СебестойностНаПродажбите[[#Totals],[Годишно]],"-") -> 12%
B9: Себестойност 5 | D9: 34 лв. | E9: 78 лв. | F9: 43 лв. | G9: 30 лв. | H9: 77 лв. | I9: 54 лв. | J9: 26 лв. | K9: 13 лв. | L9: 56 лв. | M9: 30 лв. | N9: 40 лв. | O9: 63 лв. | P9: =SUM(СебестойностНаПродажбите[[#This Row],[Яну]:[Дек]]) -> 544 лв. | Q9: 20% | R9: =IFERROR(СебестойностНаПродажбите[[#This Row],[Яну]]/СебестойностНаПродажбите[[#Totals],[Яну]],"-") -> 13% | S9: =IFERROR(СебестойностНаПродажбите[[#This Row],[Фев]]/СебестойностНаПродажбите[[#Totals],[Фев]],"-") -> 22% | T9: =IFERROR(СебестойностНаПродажбите[[#This Row],[Мар]]/СебестойностНаПродажбите[[#Totals],[Мар]],"-") -> 14% | U9: =IFERROR(СебестойностНаПродажбите[[#This Row],[Апр]]/СебестойностНаПродажбите[[#Totals],[Апр]],"-") -> 12% | V9: =IFERROR(СебестойностНаПродажбите[[#This Row],[Май]]/СебестойностНаПродажбите[[#Totals],[Май]],"-") -> 19% | W9: =IFERROR(СебестойностНаПродажбите[[#This Row],[Юни]]/СебестойностНаПродажбите[[#Totals],[Юни]],"-") -> 17% | X9: =IFERROR(СебестойностНаПродажбите[[#This Row],[Юли]]/СебестойностНаПродажбите[[#Totals],[Юли]],"-") -> 9% | Y9: =IFERROR(СебестойностНаПродажбите[[#This Row],[Авг]]/СебестойностНаПродажбите[[#Totals],[Авг]],"-") -> 6% | Z9: =IFERROR(СебестойностНаПродажбите[[#This Row],[Сеп]]/СебестойностНаПродажбите[[#Totals],[Сеп]],"-") -> 14% | AA9: =IFERROR(СебестойностНаПродажбите[[#This Row],[Окт]]/СебестойностНаПродажбите[[#Totals],[Окт]],"-") -> 11% | AB9: =IFERROR(СебестойностНаПродажбите[[#This Row],[Ное]]/СебестойностНаПродажбите[[#Totals],[Ное]],"-") -> 15% | AC9: =IFERROR(СебестойностНаПродажбите[[#This Row],[Дек]]/СебестойностНаПродажбите[[#Totals],[Дек]],"-") -> 14% | AD9: =IFERROR(СебестойностНаПродажбите[[#This Row],[Годишно]]/СебестойностНаПродажбите[[#Totals],[Годишно]],"-") -> 14%
B10: Себестойност 6 | D10: 33 лв. | E10: 61 лв. | F10: 42 лв. | G10: 43 лв. | H10: 19 лв. | I10: 94 лв. | J10: 46 лв. | K10: 15 лв. | L10: 55 лв. | M10: 15 лв. | N10: 37 лв. | O10: 89 лв. | P10: =SUM(СебестойностНаПродажбите[[#This Row],[Яну]:[Дек]]) -> 549 лв. | Q10: 10% | R10: =IFERROR(СебестойностНаПродажбите[[#This Row],[Яну]]/СебестойностНаПродажбите[[#Totals],[Яну]],"-") -> 12% | S10: =IFERROR(СебестойностНаПродажбите[[#This Row],[Фев]]/СебестойностНаПродажбите[[#Totals],[Фев]],"-") -> 17% | T10: =IFERROR(СебестойностНаПродажбите[[#This Row],[Мар]]/СебестойностНаПродажбите[[#Totals],[Мар]],"-") -> 13% | U10: =IFERROR(СебестойностНаПродажбите[[#This Row],[Апр]]/СебестойностНаПродажбите[[#Totals],[Апр]],"-") -> 18% | V10: =IFERROR(СебестойностНаПродажбите[[#This Row],[Май]]/СебестойностНаПродажбите[[#Totals],[Май]],"-") -> 5% | W10: =IFERROR(СебестойностНаПродажбите[[#This Row],[Юни]]/СебестойностНаПродажбите[[#Totals],[Юни]],"-") -> 30% | X10: =IFERROR(СебестойностНаПродажбите[[#This Row],[Юли]]/СебестойностНаПродажбите[[#Totals],[Юли]],"-") -> 15% | Y10: =IFERROR(СебестойностНаПродажбите[[#This Row],[Авг]]/СебестойностНаПродажбите[[#Totals],[Авг]],"-") -> 7% | Z10: =IFERROR(СебестойностНаПродажбите[[#This Row],[Сеп]]/СебестойностНаПродажбите[[#Totals],[Сеп]],"-") -> 13% | AA10: =IFERROR(СебестойностНаПродажбите[[#This Row],[Окт]]/СебестойностНаПродажбите[[#Totals],[Окт]],"-") -> 5% | AB10: =IFERROR(СебестойностНаПродажбите[[#This Row],[Ное]]/СебестойностНаПродажбите[[#Totals],[Ное]],"-") -> 14% | AC10: =IFERROR(СебестойностНаПродажбите[[#This Row],[Дек]]/СебестойностНаПродажбите[[#Totals],[Дек]],"-") -> 20% | AD10: =IFERROR(СебестойностНаПродажбите[[#This Row],[Годишно]]/СебестойностНаПродажбите[[#Totals],[Годишно]],"-") -> 14%
B11: Себестойност 7 | D11: 18 лв. | E11: 11 лв. | F11: 30 лв. | G11: 9 лв. | H11: 62 лв. | I11: 39 лв. | J11: 102 лв. | K11: 44 лв. | L11: 121 лв. | M11: 19 лв. | N11: 33 лв. | O11: 40 лв. | P11: =SUM(СебестойностНаПродажбите[[#This Row],[Яну]:[Дек]]) -> 528 лв. | Q11: 10% | R11: =IFERROR(СебестойностНаПродажбите[[#This Row],[Яну]]/СебестойностНаПродажбите[[#Totals],[Яну]],"-") -> 7% | S11: =IFERROR(СебестойностНаПродажбите[[#This Row],[Фев]]/СебестойностНаПродажбите[[#Totals],[Фев]],"-") -> 3% | T11: =IFERROR(СебестойностНаПродажбите[[#This Row],[Мар]]/СебестойностНаПродажбите[[#Totals],[Мар]],"-") -> 10% | U11: =IFERROR(СебестойностНаПродажбите[[#This Row],[Апр]]/СебестойностНаПродажбите[[#Totals],[Апр]],"-") -> 4% | V11: =IFERROR(СебестойностНаПродажбите[[#This Row],[Май]]/СебестойностНаПродажбите[[#Totals],[Май]],"-") -> 16% | W11: =IFERROR(СебестойностНаПродажбите[[#This Row],[Юни]]/СебестойностНаПродажбите[[#Totals],[Юни]],"-") -> 13% | X11: =IFERROR(СебестойностНаПродажбите[[#This Row],[Юли]]/СебестойностНаПродажбите[[#Totals],[Юли]],"-") -> 34% | Y11: =IFERROR(СебестойностНаПродажбите[[#This Row],[Авг]]/СебестойностНаПродажбите[[#Totals],[Авг]],"-") -> 19% | Z11: =IFERROR(СебестойностНаПродажбите[[#This Row],[Сеп]]/СебестойностНаПродажбите[[#Totals],[Сеп]],"-") -> 29% | AA11: =IFERROR(СебестойностНаПродажбите[[#This Row],[Окт]]/СебестойностНаПродажбите[[#Totals],[Окт]],"-") -> 7% | AB11: =IFERROR(СебестойностНаПродажбите[[#This Row],[Ное]]/СебестойностНаПродажбите[[#Totals],[Ное]],"-") -> 13% | AC11: =IFERROR(СебестойностНаПродажбите[[#This Row],[Дек]]/СебестойностНаПродажбите[[#Totals],[Дек]],"-") -> 9% | AD11: =IFERROR(СебестойностНаПродажбите[[#This Row],[Годишно]]/СебестойностНаПродажбите[[#Totals],[Годишно]],"-") -> 14%
B12: ОБЩА СЕБЕСТОЙНОСТ НА ПРОДАЖБИТЕ | D12: =SUBTOTAL(109,СебестойностНаПродажбите[Яну]) -> 265 лв. | E12: =SUBTOTAL(109,СебестойностНаПродажбите[Фев]) -> 356 лв. | F12: =SUBTOTAL(109,СебестойностНаПродажбите[Мар]) -> 315 лв. | G12: =SUBTOTAL(109,СебестойностНаПродажбите[Апр]) -> 241 лв. | H12: =SUBTOTAL(109,СебестойностНаПродажбите[Май]) -> 399 лв. | I12: =SUBTOTAL(109,СебестойностНаПродажбите[Юни]) -> 312 лв. | J12: =SUBTOTAL(109,СебестойностНаПродажбите[Юли]) -> 299 лв. | K12: =SUBTOTAL(109,СебестойностНаПродажбите[Авг]) -> 226 лв. | L12: =SUBTOTAL(109,СебестойностНаПродажбите[Сеп]) -> 414 лв. | M12: =SUBTOTAL(109,СебестойностНаПродажбите[Окт]) -> 274 лв. | N12: =SUBTOTAL(109,СебестойностНаПродажбите[Ное]) -> 264 лв. | O12: =SUBTOTAL(109,СебестойностНаПродажбите[Дек]) -> 453 лв. | P12: =SUBTOTAL(109,СебестойностНаПродажбите[Годишно]) -> 3,818 лв. | Q12: =SUBTOTAL(109,СебестойностНаПродажбите[инд %]) -> 100% | R12: =SUBTOTAL(109,СебестойностНаПродажбите[яну % ]) -> 100% | S12: =SUBTOTAL(109,СебестойностНаПродажбите[фев % ]) -> 100% | T12: =SUBTOTAL(109,СебестойностНаПродажбите[мар % ]) -> 100% | U12: =SUBTOTAL(109,СебестойностНаПродажбите[апр % ]) -> 100% | V12: =SUBTOTAL(109,СебестойностНаПродажбите[май % ]) -> 100% | W12: =SUBTOTAL(109,СебестойностНаПродажбите[юни % ]) -> 100% | X12: =SUBTOTAL(109,СебестойностНаПродажбите[юли % ]) -> 100% | Y12: =SUBTOTAL(109,СебестойностНаПродажбите[авг % ]) -> 100% | Z12: =SUBTOTAL(109,СебестойностНаПродажбите[сеп % ]) -> 100% | AA12: =SUBTOTAL(109,СебестойностНаПродажбите[окт % ]) -> 100% | AB12: =SUBTOTAL(109,СебестойностНаПродажбите[ное % ]) -> 100% | AC12: =SUBTOTAL(109,СебестойностНаПродажбите[дек % ]) -> 100% | AD12: =SUBTOTAL(109,СебестойностНаПродажбите[годишен %]) -> 100%
B14: Брутна печалба | D14: =Приходи[[#Totals],[Яну]]-СебестойностНаПродажбите[[#Totals],[Яну]] -> 359 лв. | E14: =Приходи[[#Totals],[Фев]]-СебестойностНаПродажбите[[#Totals],[Фев]] -> 380 лв. | F14: =Приходи[[#Totals],[Мар]]-СебестойностНаПродажбите[[#Totals],[Мар]] -> 505 лв. | G14: =Приходи[[#Totals],[Апр]]-СебестойностНаПродажбите[[#Totals],[Апр]] -> 370 лв. | H14: =Приходи[[#Totals],[Май]]-СебестойностНаПродажбите[[#Totals],[Май]] -> 413 лв. | I14: =Приходи[[#Totals],[Юни]]-СебестойностНаПродажбите[[#Totals],[Юни]] -> 266 лв. | J14: =Приходи[[#Totals],[Юли]]-СебестойностНаПродажбите[[#Totals],[Юли]] -> 298 лв. | K14: =Приходи[[#Totals],[Авг]]-СебестойностНаПродажбите[[#Totals],[Авг]] -> 449 лв. | L14: =Приходи[[#Totals],[Сеп]]-СебестойностНаПродажбите[[#Totals],[Сеп]] -> 330 лв. | M14: =Приходи[[#Totals],[Окт]]-СебестойностНаПродажбите[[#Totals],[Окт]] -> 407 лв. | N14: =Приходи[[#Totals],[Ное]]-СебестойностНаПродажбите[[#Totals],[Ное]] -> 475 лв. | O14: =Приходи[[#Totals],[Дек]]-СебестойностНаПродажбите[[#Totals],[Дек]] -> 590 лв. | P14: =Приходи[[#Totals],[Годишно]]-СебестойностНаПродажбите[[#Totals],[Годишно]] -> 4,842 лв. | R14: =D14/$P$14 -> 7% | S14: 8% | T14: 10% | U14: 8% | V14: 9% | W14: 5% | X14: 6% | Y14: 9% | Z14: 7% | AA14: 8% | AB14: 10% | AC14: 12% | AD14: 100%

Sheet Разходи
B1: =Заглавие_на_период_на_проектиране -> Дванадесет месеца | AD1: =Име_на_фирма -> Име на фирма
B2: ='Приходи (продажби)'!$B$2 -> ПРОЕКТИРАНЕ НА ПЕЧАЛБА И ЗАГУБА | AB2: ФИНАНСОВА ГОДИНА: | AC2: =НачаленМесецФГ -> ЯНУ | AD2: =НачалнаГодинаФГ -> 2017
D3: =UPPER(TEXT(DATE(НачалнаГодинаФГ,№МесецФГ,1),"mmm yy г.")) -> ЯНУ 17 Г. | E3: =UPPER(TEXT(DATE(НачалнаГодинаФГ,№МесецФГ+1,1),"mmm yy г.")) -> ФЕВ 17 Г. | F3: =UPPER(TEXT(DATE(НачалнаГодинаФГ,№МесецФГ+2,1),"mmm yy г.")) -> МАР 17 Г. | G3: =UPPER(TEXT(DATE(НачалнаГодинаФГ,№МесецФГ+3,1),"mmm yy г.")) -> АПР 17 Г. | H3: =UPPER(TEXT(DATE(НачалнаГодинаФГ,№МесецФГ+4,1),"mmm yy г.")) -> МАЙ 17 Г. | I3: =UPPER(TEXT(DATE(НачалнаГодинаФГ,№МесецФГ+5,1),"mmm yy г.")) -> ЮНИ 17 Г. | J3: =UPPER(TEXT(DATE(НачалнаГодинаФГ,№МесецФГ+6,1),"mmm yy г.")) -> ЮЛИ 17 Г. | K3: =UPPER(TEXT(DATE(НачалнаГодинаФГ,№МесецФГ+7,1),"mmm yy г.")) -> АВГ 17 Г. | L3: =UPPER(TEXT(DATE(НачалнаГодинаФГ,№МесецФГ+8,1),"mmm yy г.")) -> СЕП 17 Г. | M3: =UPPER(TEXT(DATE(НачалнаГодинаФГ,№МесецФГ+9,1),"mmm yy г.")) -> ОКТ 17 Г. | N3: =UPPER(TEXT(DATE(НачалнаГодинаФГ,№МесецФГ+10,1),"mmm yy г.")) -> НОЕ 17 Г. | O3: =UPPER(TEXT(DATE(НачалнаГодинаФГ,№МесецФГ+11,1),"mmm yy г.")) -> ДЕК 17 Г. | P3: ГОДИШНО | Q3: ИНД % | R3: =LEFT(D3,3)&" % " -> ЯНУ % | S3: =LEFT(E3,3)&" % " -> ФЕВ % | T3: МАР % | U3: АПР % | V3: МАЙ % | W3: ЮНИ % | X3: ЮЛИ % | Y3: АВГ % | Z3: СЕП % | AA3: ОКТ % | AB3: НОЕ % | AC3: ДЕК % | AD3: % ГОДИШЕН
B4: РАЗХОДИ | C4: ТЕНДЕНЦИЯ | D4: Яну | E4: Фев | F4: Мар | G4: Апр | H4: Май | I4: Юни | J4: Юли | K4: Авг | L4: Сеп | M4: Окт | N4: Ное | O4: Дек | P4: Годишно | Q4: инд % | R4: яну % | S4: фев % | T4: мар % | U4: апр % | V4: май % | W4: юни % | X4: юли % | Y4: авг % | Z4: сеп % | AA4: окт % | AB4: ное % | AC4: дек % | AD4: годишен %
B5: Разходи за трудово възнаграждение | D5: 10 лв. | E5: 18 лв. | F5: 13 лв. | G5: 8 лв. | H5: 22 лв. | I5: 18 лв. | J5: 8 лв. | K5: 17 лв. | L5: 20 лв. | M5: 8 лв. | N5: 4 лв. | O5: 12 лв. | P5: =SUM(tblExpenses[[#This Row],[Яну]:[Дек]]) -> 158 лв. | Q5: 12% | R5: =tblExpenses[[#This Row],[Яну]]/tblExpenses[[#Totals],[Яну]] -> 4% | S5: =tblExpenses[[#This Row],[Фев]]/tblExpenses[[#Totals],[Фев]] -> 9% | T5: =tblExpenses[[#This Row],[Мар]]/tblExpenses[[#Totals],[Мар]] -> 5% | U5: =tblExpenses[[#This Row],[Апр]]/tblExpenses[[#Totals],[Апр]] -> 3% | V5: =tblExpenses[[#This Row],[Май]]/tblExpenses[[#Totals],[Май]] -> 9% | W5: =tblExpenses[[#This Row],[Юни]]/tblExpenses[[#Totals],[Юни]] -> 7% | X5: =tblExpenses[[#This Row],[Юли]]/tblExpenses[[#Totals],[Юли]] -> 3% | Y5: =tblExpenses[[#This Row],[Авг]]/tblExpenses[[#Totals],[Авг]] -> 7% | Z5: =tblExpenses[[#This Row],[Сеп]]/tblExpenses[[#Totals],[Сеп]] -> 9% | AA5: =tblExpenses[[#This Row],[Окт]]/tblExpenses[[#Totals],[Окт]] -> 3% | AB5: =tblExpenses[[#This Row],[Ное]]/tblExpenses[[#Totals],[Ное]] -> 1% | AC5: =tblExpenses[[#This Row],[Дек]]/tblExpenses[[#Totals],[Дек]] -> 5% | AD5: =tblExpenses[[#This Row],[Годишно]]/tblExpenses[[#Totals],[Годишно]] -> 5%
B6: Разходи за заплати | D6: 23 лв. | E6: 11 лв. | F6: 7 лв. | G6: 14 лв. | H6: 12 лв. | I6: 19 лв. | J6: 19 лв. | K6: 4 лв. | L6: 7 лв. | M6: 13 лв. | N6: 25 лв. | O6: 5 лв. | P6: =SUM(tblExpenses[[#This Row],[Яну]:[Дек]]) -> 159 лв. | Q6: 9% | R6: =tblExpenses[[#This Row],[Яну]]/tblExpenses[[#Totals],[Яну]] -> 10% | S6: =tblExpenses[[#This Row],[Фев]]/tblExpenses[[#Totals],[Фев]] -> 5% | T6: =tblExpenses[[#This Row],[Мар]]/tblExpenses[[#Totals],[Мар]] -> 3% | U6: =tblExpenses[[#This Row],[Апр]]/tblExpenses[[#Totals],[Апр]] -> 5% | V6: =tblExpenses[[#This Row],[Май]]/tblExpenses[[#Totals],[Май]] -> 5% | W6: =tblExpenses[[#This Row],[Юни]]/tblExpenses[[#Totals],[Юни]] -> 7% | X6: =tblExpenses[[#This Row],[Юли]]/tblExpenses[[#Totals],[Юли]] -> 7% | Y6: =tblExpenses[[#This Row],[Авг]]/tblExpenses[[#Totals],[Авг]] -> 2% | Z6: =tblExpenses[[#This Row],[Сеп]]/tblExpenses[[#Totals],[Сеп]] -> 3% | AA6: =tblExpenses[[#This Row],[Окт]]/tblExpenses[[#Totals],[Окт]] -> 5% | AB6: =tblExpenses[[#This Row],[Ное]]/tblExpenses[[#Totals],[Ное]] -> 8% | AC6: =tblExpenses[[#This Row],[Дек]]/tblExpenses[[#Totals],[Дек]] -> 2% | AD6: =tblExpenses[[#This Row],[Годишно]]/tblExpenses[[#Totals],[Годишно]] -> 5%
B7: Външни услуги | D7: 23 лв. | E7: 20 лв. | F7: 3 лв. | G7: 16 лв. | H7: 10 лв. | I7: 5 лв. | J7: 20 лв. | K7: 7 лв. | L7: 4 лв. | M7: 22 лв. | N7: 13 лв. | O7: 14 лв. | P7: =SUM(tblExpenses[[#This Row],[Яну]:[Дек]]) -> 157 лв. | Q7: 2% | R7: =tblExpenses[[#This Row],[Яну]]/tblExpenses[[#Totals],[Яну]] -> 10% | S7: =tblExpenses[[#This Row],[Фев]]/tblExpenses[[#Totals],[Фев]] -> 10% | T7: =tblExpenses[[#This Row],[Мар]]/tblExpenses[[#Totals],[Мар]] -> 1% | U7: =tblExpenses[[#This Row],[Апр]]/tblExpenses[[#Totals],[Апр]] -> 6% | V7: =tblExpenses[[#This Row],[Май]]/tblExpenses[[#Totals],[Май]] -> 4% | W7: =tblExpenses[[#This Row],[Юни]]/tblExpenses[[#Totals],[Юни]] -> 2% | X7: =tblExpenses[[#This Row],[Юли]]/tblExpenses[[#Totals],[Юли]] -> 8% | Y7: =tblExpenses[[#This Row],[Авг]]/tblExpenses[[#Totals],[Авг]] -> 3% | Z7: =tblExpenses[[#This Row],[Сеп]]/tblExpenses[[#Totals],[Сеп]] -> 2% | AA7: =tblExpenses[[#This Row],[Окт]]/tblExpenses[[#Totals],[Окт]] -> 8% | AB7: =tblExpenses[[#This Row],[Ное]]/tblExpenses[[#Totals],[Ное]] -> 4% | AC7: =tblExpenses[[#This Row],[Дек]]/tblExpenses[[#Totals],[Дек]] -> 6% | AD7: =tblExpenses[[#This Row],[Годишно]]/tblExpenses[[#Totals],[Годишно]] -> 5%
B8: Консумативи (за офиса и оперативни) | D8: 19 лв. | E8: 4 лв. | F8: 7 лв. | G8: 14 лв. | H8: 22 лв. | I8: 10 лв. | J8: 22 лв. | K8: 5 лв. | L8: 4 лв. | M8: 12 лв. | N8: 18 лв. | O8: 24 лв. | P8: =SUM(tblExpenses[[#This Row],[Яну]:[Дек]]) -> 161 лв. | Q8: 8% | R8: =tblExpenses[[#This Row],[Яну]]/tblExpenses[[#Totals],[Яну]] -> 8% | S8: =tblExpenses[[#This Row],[Фев]]/tblExpenses[[#Totals],[Фев]] -> 2% | T8: =tblExpenses[[#This Row],[Мар]]/tblExpenses[[#Totals],[Мар]] -> 3% | U8: =tblExpenses[[#This Row],[Апр]]/tblExpenses[[#Totals],[Апр]] -> 5% | V8: =tblExpenses[[#This Row],[Май]]/tblExpenses[[#Totals],[Май]] -> 9% | W8: =tblExpenses[[#This Row],[Юни]]/tblExpenses[[#Totals],[Юни]] -> 4% | X8: =tblExpenses[[#This Row],[Юли]]/tblExpenses[[#Totals],[Юли]] -> 8% | Y8: =tblExpenses[[#This Row],[Авг]]/tblExpenses[[#Totals],[Авг]] -> 2% | Z8: =tblExpenses[[#This Row],[Сеп]]/tblExpenses[[#Totals],[Сеп]] -> 2% | AA8: =tblExpenses[[#This Row],[Окт]]/tblExpenses[[#Totals],[Окт]] -> 5% | AB8: =tblExpenses[[#This Row],[Ное]]/tblExpenses[[#Totals],[Ное]] -> 6% | AC8: =tblExpenses[[#This Row],[Дек]]/tblExpenses[[#Totals],[Дек]] -> 10% | AD8: =tblExpenses[[#This Row],[Годишно]]/tblExpenses[[#Totals],[Годишно]] -> 5%
B9: Ремонти и поддръжка | D9: 11 лв. | E9: 11 лв. | F9: 17 лв. | G9: 12 лв. | H9: 2 лв. | I9: 14 лв. | J9: 12 лв. | K9: 10 лв. | L9: 18 лв. | M9: 11 лв. | N9: 23 лв. | O9: 11 лв. | P9: =SUM(tblExpenses[[#This Row],[Яну]:[Дек]]) -> 152 лв. | Q9: 3% | R9: =tblExpenses[[#This Row],[Яну]]/tblExpenses[[#Totals],[Яну]] -> 5% | S9: =tblExpenses[[#This Row],[Фев]]/tblExpenses[[#Totals],[Фев]] -> 5% | T9: =tblExpenses[[#This Row],[Мар]]/tblExpenses[[#Totals],[Мар]] -> 7% | U9: =tblExpenses[[#This Row],[Апр]]/tblExpenses[[#Totals],[Апр]] -> 5% | V9: =tblExpenses[[#This Row],[Май]]/tblExpenses[[#Totals],[Май]] -> 1% | W9: =tblExpenses[[#This Row],[Юни]]/tblExpenses[[#Totals],[Юни]] -> 5% | X9: =tblExpenses[[#This Row],[Юли]]/tblExpenses[[#Totals],[Юли]] -> 5% | Y9: =tblExpenses[[#This Row],[Авг]]/tblExpenses[[#Totals],[Авг]] -> 4% | Z9: =tblExpenses[[#This Row],[Сеп]]/tblExpenses[[#Totals],[Сеп]] -> 8% | AA9: =tblExpenses[[#This Row],[Окт]]/tblExpenses[[#Totals],[Окт]] -> 4% | AB9: =tblExpenses[[#This Row],[Ное]]/tblExpenses[[#Totals],[Ное]] -> 8% | AC9: =tblExpenses[[#This Row],[Дек]]/tblExpenses[[#Totals],[Дек]] -> 5% | AD9: =tblExpenses[[#This Row],[Годишно]]/tblExpenses[[#Totals],[Годишно]] -> 5%
B10: Реклама | D10: 2 лв. | E10: 16 лв. | F10: 6 лв. | G10: 13 лв. | H10: 11 лв. | I10: 22 лв. | J10: 21 лв. | K10: 3 лв. | L10: 12 лв. | M10: 7 лв. | N10: 17 лв. | O10: 20 лв. | P10: =SUM(tblExpenses[[#This Row],[Яну]:[Дек]]) -> 150 лв. | Q10: 15% | R10: =tblExpenses[[#This Row],[Яну]]/tblExpenses[[#Totals],[Яну]] -> 1% | S10: =tblExpenses[[#This Row],[Фев]]/tblExpenses[[#Totals],[Фев]] -> 8% | T10: =tblExpenses[[#This Row],[Мар]]/tblExpenses[[#Totals],[Мар]] -> 2% | U10: =tblExpenses[[#This Row],[Апр]]/tblExpenses[[#Totals],[Апр]] -> 5% | V10: =tblExpenses[[#This Row],[Май]]/tblExpenses[[#Totals],[Май]] -> 4% | W10: =tblExpenses[[#This Row],[Юни]]/tblExpenses[[#Totals],[Юни]] -> 8% | X10: =tblExpenses[[#This Row],[Юли]]/tblExpenses[[#Totals],[Юли]] -> 8% | Y10: =tblExpenses[[#This Row],[Авг]]/tblExpenses[[#Totals],[Авг]] -> 1% | Z10: =tblExpenses[[#This Row],[Сеп]]/tblExpenses[[#Totals],[Сеп]] -> 5% | AA10: =tblExpenses[[#This Row],[Окт]]/tblExpenses[[#Totals],[Окт]] -> 3% | AB10: =tblExpenses[[#This Row],[Ное]]/tblExpenses[[#Totals],[Ное]] -> 6% | AC10: =tblExpenses[[#This Row],[Дек]]/tblExpenses[[#Totals],[Дек]] -> 9% | AD10: =tblExpenses[[#This Row],[Годишно]]/tblExpenses[[#Totals],[Годишно]] -> 5%
B11: Кола, доставка и пътуване | D11: 8 лв. | E11: 17 лв. | F11: 11 лв. | G11: 11 лв. | H11: 21 лв. | I11: 9 лв. | J11: 20 лв. | K11: 3 лв. | L11: 14 лв. | M11: 22 лв. | N11: 16 лв. | O11: 12 лв. | P11: =SUM(tblExpenses[[#This Row],[Яну]:[Дек]]) -> 164 лв. | Q11: 12% | R11: =tblExpenses[[#This Row],[Яну]]/tblExpenses[[#Totals],[Яну]] -> 3% | S11: =tblExpenses[[#This Row],[Фев]]/tblExpenses[[#Totals],[Фев]] -> 8% | T11: =tblExpenses[[#This Row],[Мар]]/tblExpenses[[#Totals],[Мар]] -> 4% | U11: =tblExpenses[[#This Row],[Апр]]/tblExpenses[[#Totals],[Апр]] -> 4% | V11: =tblExpenses[[#This Row],[Май]]/tblExpenses[[#Totals],[Май]] -> 8% | W11: =tblExpenses[[#This Row],[Юни]]/tblExpenses[[#Totals],[Юни]] -> 3% | X11: =tblExpenses[[#This Row],[Юли]]/tblExpenses[[#Totals],[Юли]] -> 8% | Y11: =tblExpenses[[#This Row],[Авг]]/tblExpenses[[#Totals],[Авг]] -> 1% | Z11: =tblExpenses[[#This Row],[Сеп]]/tblExpenses[[#Totals],[Сеп]] -> 6% | AA11: =tblExpenses[[#This Row],[Окт]]/tblExpenses[[#Totals],[Окт]] -> 8% | AB11: =tblExpenses[[#This Row],[Ное]]/tblExpenses[[#Totals],[Ное]] -> 5% | AC11: =tblExpenses[[#This Row],[Дек]]/tblExpenses[[#Totals],[Дек]] -> 5% | AD11: =tblExpenses[[#This Row],[Годишно]]/tblExpenses[[#Totals],[Годишно]] -> 5%
B12: Счетоводни и правни услуги | D12: 5 лв. | E12: 13 лв. | F12: 6 лв. | G12: 15 лв. | H12: 19 лв. | I12: 10 лв. | J12: 12 лв. | K12: 9 лв. | L12: 15 лв. | M12: 16 лв. | N12: 4 лв. | O12: 9 лв. | P12: =SUM(tblExpenses[[#This Row],[Яну]:[Дек]]) -> 133 лв. | Q12: 9% | R12: =tblExpenses[[#This Row],[Яну]]/tblExpenses[[#Totals],[Яну]] -> 2% | S12: =tblExpenses[[#This Row],[Фев]]/tblExpenses[[#Totals],[Фев]] -> 6% | T12: =tblExpenses[[#This Row],[Мар]]/tblExpenses[[#Totals],[Мар]] -> 2% | U12: =tblExpenses[[#This Row],[Апр]]/tblExpenses[[#Totals],[Апр]] -> 6% | V12: =tblExpenses[[#This Row],[Май]]/tblExpenses[[#Totals],[Май]] -> 7% | W12: =tblExpenses[[#This Row],[Юни]]/tblExpenses[[#Totals],[Юни]] -> 4% | X12: =tblExpenses[[#This Row],[Юли]]/tblExpenses[[#Totals],[Юли]] -> 5% | Y12: =tblExpenses[[#This Row],[Авг]]/tblExpenses[[#Totals],[Авг]] -> 4% | Z12: =tblExpenses[[#This Row],[Сеп]]/tblExpenses[[#Totals],[Сеп]] -> 7% | AA12: =tblExpenses[[#This Row],[Окт]]/tblExpenses[[#Totals],[Окт]] -> 6% | AB12: =tblExpenses[[#This Row],[Ное]]/tblExpenses[[#Totals],[Ное]] -> 1% | AC12: =tblExpenses[[#This Row],[Дек]]/tblExpenses[[#Totals],[Дек]] -> 4% | AD12: =tblExpenses[[#This Row],[Годишно]]/tblExpenses[[#Totals],[Годишно]] -> 4%
B13: Наем | D13: 8 лв. | E13: 4 лв. | F13: 23 лв. | G13: 25 лв. | H13: 10 лв. | I13: 24 лв. | J13: 22 лв. | K13: 5 лв. | L13: 12 лв. | M13: 24 лв. | N13: 24 лв. | O13: 12 лв. | P13: =SUM(tblExpenses[[#This Row],[Яну]:[Дек]]) -> 193 лв. | Q13: 1% | R13: =tblExpenses[[#This Row],[Яну]]/tblExpenses[[#Totals],[Яну]] -> 3% | S13: =tblExpenses[[#This Row],[Фев]]/tblExpenses[[#Totals],[Фев]] -> 2% | T13: =tblExpenses[[#This Row],[Мар]]/tblExpenses[[#Totals],[Мар]] -> 9% | U13: =tblExpenses[[#This Row],[Апр]]/tblExpenses[[#Totals],[Апр]] -> 10% | V13: =tblExpenses[[#This Row],[Май]]/tblExpenses[[#Totals],[Май]] -> 4% | W13: =tblExpenses[[#This Row],[Юни]]/tblExpenses[[#Totals],[Юни]] -> 9% | X13: =tblExpenses[[#This Row],[Юли]]/tblExpenses[[#Totals],[Юли]] -> 8% | Y13: =tblExpenses[[#This Row],[Авг]]/tblExpenses[[#Totals],[Авг]] -> 2% | Z13: =tblExpenses[[#This Row],[Сеп]]/tblExpenses[[#Totals],[Сеп]] -> 5% | AA13: =tblExpenses[[#This Row],[Окт]]/tblExpenses[[#Totals],[Окт]] -> 9% | AB13: =tblExpenses[[#This Row],[Ное]]/tblExpenses[[#Totals],[Ное]] -> 8% | AC13: =tblExpenses[[#This Row],[Дек]]/tblExpenses[[#Totals],[Дек]] -> 5% | AD13: =tblExpenses[[#This Row],[Годишно]]/tblExpenses[[#Totals],[Годишно]] -> 6%
B14: Телефон | D14: 25 лв. | E14: 2 лв. | F14: 12 лв. | G14: 25 лв. | H14: 10 лв. | I14: 24 лв. | J14: 3 лв. | K14: 20 лв. | L14: 3 лв. | M14: 9 лв. | N14: 20 лв. | O14: 18 лв. | P14: =SUM(tblExpenses[[#This Row],[Яну]:[Дек]]) -> 171 лв. | Q14: 1% | R14: =tblExpenses[[#This Row],[Яну]]/tblExpenses[[#Totals],[Яну]] -> 11% | S14: =tblExpenses[[#This Row],[Фев]]/tblExpenses[[#Totals],[Фев]] -> 1% | T14: =tblExpenses[[#This Row],[Мар]]/tblExpenses[[#Totals],[Мар]] -> 5% | U14: =tblExpenses[[#This Row],[Апр]]/tblExpenses[[#Totals],[Апр]] -> 10% | V14: =tblExpenses[[#This Row],[Май]]/tblExpenses[[#Totals],[Май]] -> 4% | W14: =tblExpenses[[#This Row],[Юни]]/tblExpenses[[#Totals],[Юни]] -> 9% | X14: =tblExpenses[[#This Row],[Юли]]/tblExpenses[[#Totals],[Юли]] -> 1% | Y14: =tblExpenses[[#This Row],[Авг]]/tblExpenses[[#Totals],[Авг]] -> 9% | Z14: =tblExpenses[[#This Row],[Сеп]]/tblExpenses[[#Totals],[Сеп]] -> 1% | AA14: =tblExpenses[[#This Row],[Окт]]/tblExpenses[[#Totals],[Окт]] -> 3% | AB14: =tblExpenses[[#This Row],[Ное]]/tblExpenses[[#Totals],[Ное]] -> 7% | AC14: =tblExpenses[[#This Row],[Дек]]/tblExpenses[[#Totals],[Дек]] -> 8% | AD14: =tblExpenses[[#This Row],[Годишно]]/tblExpenses[[#Totals],[Годишно]] -> 6%
B15: Комунални услуги | D15: 16 лв. | E15: 19 лв. | F15: 9 лв. | G15: 16 лв. | H15: 13 лв. | I15: 2 лв. | J15: 4 лв. | K15: 24 лв. | L15: 16 лв. | M15: 22 лв. | N15: 7 лв. | O15: 18 лв. | P15: =SUM(tblExpenses[[#This Row],[Яну]:[Дек]]) -> 166 лв. | Q15: 1% | R15: =tblExpenses[[#This Row],[Яну]]/tblExpenses[[#Totals],[Яну]] -> 7% | S15: =tblExpenses[[#This Row],[Фев]]/tblExpenses[[#Totals],[Фев]] -> 9% | T15: =tblExpenses[[#This Row],[Мар]]/tblExpenses[[#Totals],[Мар]] -> 4% | U15: =tblExpenses[[#This Row],[Апр]]/tblExpenses[[#Totals],[Апр]] -> 6% | V15: =tblExpenses[[#This Row],[Май]]/tblExpenses[[#Totals],[Май]] -> 5% | W15: =tblExpenses[[#This Row],[Юни]]/tblExpenses[[#Totals],[Юни]] -> 1% | X15: =tblExpenses[[#This Row],[Юли]]/tblExpenses[[#Totals],[Юли]] -> 2% | Y15: =tblExpenses[[#This Row],[Авг]]/tblExpenses[[#Totals],[Авг]] -> 10% | Z15: =tblExpenses[[#This Row],[Сеп]]/tblExpenses[[#Totals],[Сеп]] -> 7% | AA15: =tblExpenses[[#This Row],[Окт]]/tblExpenses[[#Totals],[Окт]] -> 8% | AB15: =tblExpenses[[#This Row],[Ное]]/tblExpenses[[#Totals],[Ное]] -> 2% | AC15: =tblExpenses[[#This Row],[Дек]]/tblExpenses[[#Totals],[Дек]] -> 8% | AD15: =tblExpenses[[#This Row],[Годишно]]/tblExpenses[[#Totals],[Годишно]] -> 6%
B16: Застраховка | D16: 12 лв. | E16: 9 лв. | F16: 16 лв. | G16: 19 лв. | H16: 25 лв. | I16: 17 лв. | J16: 20 лв. | K16: 14 лв. | L16: 5 лв. | M16: 14 лв. | N16: 5 лв. | O16: 2 лв. | P16: =SUM(tblExpenses[[#This Row],[Яну]:[Дек]]) -> 158 лв. | Q16: 1% | R16: =tblExpenses[[#This Row],[Яну]]/tblExpenses[[#Totals],[Яну]] -> 5% | S16: =tblExpenses[[#This Row],[Фев]]/tblExpenses[[#Totals],[Фев]] -> 4% | T16: =tblExpenses[[#This Row],[Мар]]/tblExpenses[[#Totals],[Мар]] -> 6% | U16: =tblExpenses[[#This Row],[Апр]]/tblExpenses[[#Totals],[Апр]] -> 7% | V16: =tblExpenses[[#This Row],[Май]]/tblExpenses[[#Totals],[Май]] -> 10% | W16: =tblExpenses[[#This Row],[Юни]]/tblExpenses[[#Totals],[Юни]] -> 6% | X16: =tblExpenses[[#This Row],[Юли]]/tblExpenses[[#Totals],[Юли]] -> 8% | Y16: =tblExpenses[[#This Row],[Авг]]/tblExpenses[[#Totals],[Авг]] -> 6% | Z16: =tblExpenses[[#This Row],[Сеп]]/tblExpenses[[#Totals],[Сеп]] -> 2% | AA16: =tblExpenses[[#This Row],[Окт]]/tblExpenses[[#Totals],[Окт]] -> 5% | AB16: =tblExpenses[[#This Row],[Ное]]/tblExpenses[[#Totals],[Ное]] -> 2% | AC16: =tblExpenses[[#This Row],[Дек]]/tblExpenses[[#Totals],[Дек]] -> 1% | AD16: =tblExpenses[[#This Row],[Годишно]]/tblExpenses[[#Totals],[Годишно]] -> 5%
B17: Данъци (недвижими имоти и др.) | D17: 16 лв. | E17: 13 лв. | F17: 10 лв. | G17: 7 лв. | H17: 13 лв. | I17: 3 лв. | J17: 13 лв. | K17: 17 лв. | L17: 9 лв. | M17: 4 лв. | N17: 22 лв. | O17: 18 лв. | P17: =SUM(tblExpenses[[#This Row],[Яну]:[Дек]]) -> 145 лв. | Q17: 14% | R17: =tblExpenses[[#This Row],[Яну]]/tblExpenses[[#Totals],[Яну]] -> 7% | S17: =tblExpenses[[#This Row],[Фев]]/tblExpenses[[#Totals],[Фев]] -> 6% | T17: =tblExpenses[[#This Row],[Мар]]/tblExpenses[[#Totals],[Мар]] -> 4% | U17: =tblExpenses[[#This Row],[Апр]]/tblExpenses[[#Totals],[Апр]] -> 3% | V17: =tblExpenses[[#This Row],[Май]]/tblExpenses[[#Totals],[Май]] -> 5% | W17: =tblExpenses[[#This Row],[Юни]]/tblExpenses[[#Totals],[Юни]] -> 1% | X17: =tblExpenses[[#This Row],[Юли]]/tblExpenses[[#Totals],[Юли]] -> 5% | Y17: =tblExpenses[[#This Row],[Авг]]/tblExpenses[[#Totals],[Авг]] -> 7% | Z17: =tblExpenses[[#This Row],[Сеп]]/tblExpenses[[#Totals],[Сеп]] -> 4% | AA17: =tblExpenses[[#This Row],[Окт]]/tblExpenses[[#Totals],[Окт]] -> 2% | AB17: =tblExpenses[[#This Row],[Ное]]/tblExpenses[[#Totals],[Ное]] -> 7% | AC17: =tblExpenses[[#This Row],[Дек]]/tblExpenses[[#Totals],[Дек]] -> 8% | AD17: =tblExpenses[[#This Row],[Годишно]]/tblExpenses[[#Totals],[Годишно]] -> 5%
B18: Лихва | D18: 3 лв. | E18: 2 лв. | F18: 19 лв. | G18: 21 лв. | H18: 13 лв. | I18: 9 лв. | J18: 7 лв. | K18: 13 лв. | L18: 3 лв. | M18: 6 лв. | N18: 10 лв. | O18: 13 лв. | P18: =SUM(tblExpenses[[#This Row],[Яну]:[Дек]]) -> 119 лв. | Q18: 6% | R18: =tblExpenses[[#This Row],[Яну]]/tblExpenses[[#Totals],[Яну]] -> 1% | S18: =tblExpenses[[#This Row],[Фев]]/tblExpenses[[#Totals],[Фев]] -> 1% | T18: =tblExpenses[[#This Row],[Мар]]/tblExpenses[[#Totals],[Мар]] -> 8% | U18: =tblExpenses[[#This Row],[Апр]]/tblExpenses[[#Totals],[Апр]] -> 8% | V18: =tblExpenses[[#This Row],[Май]]/tblExpenses[[#Totals],[Май]] -> 5% | W18: =tblExpenses[[#This Row],[Юни]]/tblExpenses[[#Totals],[Юни]] -> 3% | X18: =tblExpenses[[#This Row],[Юли]]/tblExpenses[[#Totals],[Юли]] -> 3% | Y18: =tblExpenses[[#This Row],[Авг]]/tblExpenses[[#Totals],[Авг]] -> 6% | Z18: =tblExpenses[[#This Row],[Сеп]]/tblExpenses[[#Totals],[Сеп]] -> 1% | AA18: =tblExpenses[[#This Row],[Окт]]/tblExpenses[[#Totals],[Окт]] -> 2% | AB18: =tblExpenses[[#This Row],[Ное]]/tblExpenses[[#Totals],[Ное]] -> 3% | AC18: =tblExpenses[[#This Row],[Дек]]/tblExpenses[[#Totals],[Дек]] -> 6% | AD18: =tblExpenses[[#This Row],[Годишно]]/tblExpenses[[#Totals],[Годишно]] -> 4%
B19: Амортизация | D19: 8 лв. | E19: 7 лв. | F19: 6 лв. | G19: 7 лв. | H19: 7 лв. | I19: 6 лв. | J19: 15 лв. | K19: 23 лв. | L19: 21 лв. | M19: 16 лв. | N19: 19 лв. | O19: 7 лв. | P19: =SUM(tblExpenses[[#This Row],[Яну]:[Дек]]) -> 142 лв. | Q19: 1% | R19: =tblExpenses[[#This Row],[Яну]]/tblExpenses[[#Totals],[Яну]] -> 3% | S19: =tblExpenses[[#This Row],[Фев]]/tblExpenses[[#Totals],[Фев]] -> 3% | T19: =tblExpenses[[#This Row],[Мар]]/tblExpenses[[#Totals],[Мар]] -> 2% | U19: =tblExpenses[[#This Row],[Апр]]/tblExpenses[[#Totals],[Апр]] -> 3% | V19: =tblExpenses[[#This Row],[Май]]/tblExpenses[[#Totals],[Май]] -> 3% | W19: =tblExpenses[[#This Row],[Юни]]/tblExpenses[[#Totals],[Юни]] -> 2% | X19: =tblExpenses[[#This Row],[Юли]]/tblExpenses[[#Totals],[Юли]] -> 6% | Y19: =tblExpenses[[#This Row],[Авг]]/tblExpenses[[#Totals],[Авг]] -> 10% | Z19: =tblExpenses[[#This Row],[Сеп]]/tblExpenses[[#Totals],[Сеп]] -> 9% | AA19: =tblExpenses[[#This Row],[Окт]]/tblExpenses[[#Totals],[Окт]] -> 6% | AB19: =tblExpenses[[#This Row],[Ное]]/tblExpenses[[#Totals],[Ное]] -> 6% | AC19: =tblExpenses[[#This Row],[Дек]]/tblExpenses[[#Totals],[Дек]] -> 3% | AD19: =tblExpenses[[#This Row],[Годишно]]/tblExpenses[[#Totals],[Годишно]] -> 5%
B20: Други разходи (уточнение) | D20: 14 лв. | E20: 4 лв. | F20: 24 лв. | G20: 6 лв. | H20: 20 лв. | I20: 14 лв. | J20: 21 лв. | K20: 20 лв. | L20: 22 лв. | M20: 3 лв. | N20: 14 лв. | O20: 6 лв. | P20: =SUM(tblExpenses[[#This Row],[Яну]:[Дек]]) -> 168 лв. | Q20: 1% | R20: =tblExpenses[[#This Row],[Яну]]/tblExpenses[[#Totals],[Яну]] -> 6% | S20: =tblExpenses[[#This Row],[Фев]]/tblExpenses[[#Totals],[Фев]] -> 2% | T20: =tblExpenses[[#This Row],[Мар]]/tblExpenses[[#Totals],[Мар]] -> 10% | U20: =tblExpenses[[#This Row],[Апр]]/tblExpenses[[#Totals],[Апр]] -> 2% | V20: =tblExpenses[[#This Row],[Май]]/tblExpenses[[#Totals],[Май]] -> 8% | W20: =tblExpenses[[#This Row],[Юни]]/tblExpenses[[#Totals],[Юни]] -> 5% | X20: =tblExpenses[[#This Row],[Юли]]/tblExpenses[[#Totals],[Юли]] -> 8% | Y20: =tblExpenses[[#This Row],[Авг]]/tblExpenses[[#Totals],[Авг]] -> 9% | Z20: =tblExpenses[[#This Row],[Сеп]]/tblExpenses[[#Totals],[Сеп]] -> 10% | AA20: =tblExpenses[[#This Row],[Окт]]/tblExpenses[[#Totals],[Окт]] -> 1% | AB20: =tblExpenses[[#This Row],[Ное]]/tblExpenses[[#Totals],[Ное]] -> 5% | AC20: =tblExpenses[[#This Row],[Дек]]/tblExpenses[[#Totals],[Дек]] -> 3% | AD20: =tblExpenses[[#This Row],[Годишно]]/tblExpenses[[#Totals],[Годишно]] -> 6%
B21: Други разходи (уточнение) | D21: 14 лв. | E21: 7 лв. | F21: 24 лв. | G21: 10 лв. | H21: 7 лв. | I21: 24 лв. | J21: 2 лв. | K21: 11 лв. | L21: 21 лв. | M21: 19 лв. | N21: 19 лв. | O21: 20 лв. | P21: =SUM(tblExpenses[[#This Row],[Яну]:[Дек]]) -> 178 лв. | Q21: 1% | R21: =tblExpenses[[#This Row],[Яну]]/tblExpenses[[#Totals],[Яну]] -> 6% | S21: =tblExpenses[[#This Row],[Фев]]/tblExpenses[[#Totals],[Фев]] -> 3% | T21: =tblExpenses[[#This Row],[Мар]]/tblExpenses[[#Totals],[Мар]] -> 10% | U21: =tblExpenses[[#This Row],[Апр]]/tblExpenses[[#Totals],[Апр]] -> 4% | V21: =tblExpenses[[#This Row],[Май]]/tblExpenses[[#Totals],[Май]] -> 3% | W21: =tblExpenses[[#This Row],[Юни]]/tblExpenses[[#Totals],[Юни]] -> 9% | X21: =tblExpenses[[#This Row],[Юли]]/tblExpenses[[#Totals],[Юли]] -> 1% | Y21: =tblExpenses[[#This Row],[Авг]]/tblExpenses[[#Totals],[Авг]] -> 5% | Z21: =tblExpenses[[#This Row],[Сеп]]/tblExpenses[[#Totals],[Сеп]] -> 9% | AA21: =tblExpenses[[#This Row],[Окт]]/tblExpenses[[#Totals],[Окт]] -> 7% | AB21: =tblExpenses[[#This Row],[Ное]]/tblExpenses[[#Totals],[Ное]] -> 6% | AC21: =tblExpenses[[#This Row],[Дек]]/tblExpenses[[#Totals],[Дек]] -> 9% | AD21: =tblExpenses[[#This Row],[Годишно]]/tblExpenses[[#Totals],[Годишно]] -> 6%
B22: Други разходи (уточнение) | D22: 11 лв. | E22: 8 лв. | F22: 25 лв. | G22: 11 лв. | H22: 9 лв. | I22: 24 лв. | J22: 13 лв. | K22: 14 лв. | L22: 19 лв. | M22: 24 лв. | N22: 15 лв. | O22: 7 лв. | P22: =SUM(tblExpenses[[#This Row],[Яну]:[Дек]]) -> 180 лв. | Q22: 1% | R22: =tblExpenses[[#This Row],[Яну]]/tblExpenses[[#Totals],[Яну]] -> 5% | S22: =tblExpenses[[#This Row],[Фев]]/tblExpenses[[#Totals],[Фев]] -> 4% | T22: =tblExpenses[[#This Row],[Мар]]/tblExpenses[[#Totals],[Мар]] -> 10% | U22: =tblExpenses[[#This Row],[Апр]]/tblExpenses[[#Totals],[Апр]] -> 4% | V22: =tblExpenses[[#This Row],[Май]]/tblExpenses[[#Totals],[Май]] -> 4% | W22: =tblExpenses[[#This Row],[Юни]]/tblExpenses[[#Totals],[Юни]] -> 9% | X22: =tblExpenses[[#This Row],[Юли]]/tblExpenses[[#Totals],[Юли]] -> 5% | Y22: =tblExpenses[[#This Row],[Авг]]/tblExpenses[[#Totals],[Авг]] -> 6% | Z22: =tblExpenses[[#This Row],[Сеп]]/tblExpenses[[#Totals],[Сеп]] -> 8% | AA22: =tblExpenses[[#This Row],[Окт]]/tblExpenses[[#Totals],[Окт]] -> 9% | AB22: =tblExpenses[[#This Row],[Ное]]/tblExpenses[[#Totals],[Ное]] -> 5% | AC22: =tblExpenses[[#This Row],[Дек]]/tblExpenses[[#Totals],[Дек]] -> 3% | AD22: =tblExpenses[[#This Row],[Годишно]]/tblExpenses[[#Totals],[Годишно]] -> 6%
B23: Разни (неуточнени) | D23: 8 лв. | E23: 20 лв. | F23: 11 лв. | G23: 11 лв. | H23: 11 лв. | I23: 20 лв. | J23: 12 лв. | K23: 16 лв. | L23: 5 лв. | M23: 7 лв. | N23: 21 лв. | O23: 3 лв. | P23: =SUM(tblExpenses[[#This Row],[Яну]:[Дек]]) -> 145 лв. | Q23: 2% | R23: =tblExpenses[[#This Row],[Яну]]/tblExpenses[[#Totals],[Яну]] -> 3% | S23: =tblExpenses[[#This Row],[Фев]]/tblExpenses[[#Totals],[Фев]] -> 10% | T23: =tblExpenses[[#This Row],[Мар]]/tblExpenses[[#Totals],[Мар]] -> 4% | U23: =tblExpenses[[#This Row],[Апр]]/tblExpenses[[#Totals],[Апр]] -> 4% | V23: =tblExpenses[[#This Row],[Май]]/tblExpenses[[#Totals],[Май]] -> 4% | W23: =tblExpenses[[#This Row],[Юни]]/tblExpenses[[#Totals],[Юни]] -> 7% | X23: =tblExpenses[[#This Row],[Юли]]/tblExpenses[[#Totals],[Юли]] -> 5% | Y23: =tblExpenses[[#This Row],[Авг]]/tblExpenses[[#Totals],[Авг]] -> 7% | Z23: =tblExpenses[[#This Row],[Сеп]]/tblExpenses[[#Totals],[Сеп]] -> 2% | AA23: =tblExpenses[[#This Row],[Окт]]/tblExpenses[[#Totals],[Окт]] -> 3% | AB23: =tblExpenses[[#This Row],[Ное]]/tblExpenses[[#Totals],[Ное]] -> 7% | AC23: =tblExpenses[[#This Row],[Дек]]/tblExpenses[[#Totals],[Дек]] -> 1% | AD23: =tblExpenses[[#This Row],[Годишно]]/tblExpenses[[#Totals],[Годишно]] -> 5%
B24: ОБЩО РАЗХОДИ | D24: =SUBTOTAL(109,tblExpenses[Яну]) -> 236 лв. | E24: =SUBTOTAL(109,tblExpenses[Фев]) -> 205 лв. | F24: =SUBTOTAL(109,tblExpenses[Мар]) -> 249 лв. | G24: =SUBTOTAL(109,tblExpenses[Апр]) -> 261 лв. | H24: =SUBTOTAL(109,tblExpenses[Май]) -> 257 лв. | I24: =SUBTOTAL(109,tblExpenses[Юни]) -> 274 лв. | J24: =SUBTOTAL(109,tblExpenses[Юли]) -> 266 лв. | K24: =SUBTOTAL(109,tblExpenses[Авг]) -> 235 лв. | L24: =SUBTOTAL(109,tblExpenses[Сеп]) -> 230 лв. | M24: =SUBTOTAL(109,tblExpenses[Окт]) -> 259 лв. | N24: =SUBTOTAL(109,tblExpenses[Ное]) -> 296 лв. | O24: =SUBTOTAL(109,tblExpenses[Дек]) -> 231 лв. | P24: =SUBTOTAL(109,tblExpenses[Годишно]) -> 2,999 лв. | Q24: =SUBTOTAL(109,tblExpenses[инд %]) -> 100% | R24: =SUBTOTAL(109,tblExpenses[яну % ]) -> 100% | S24: =SUBTOTAL(109,tblExpenses[фев % ]) -> 100% | T24: =SUBTOTAL(109,tblExpenses[мар % ]) -> 100% | U24: =SUBTOTAL(109,tblExpenses[апр % ]) -> 100% | V24: =SUBTOTAL(109,tblExpenses[май % ]) -> 100% | W24: =SUBTOTAL(109,tblExpenses[юни % ]) -> 100% | X24: =SUBTOTAL(109,tblExpenses[юли % ]) -> 100% | Y24: =SUBTOTAL(109,tblExpenses[авг % ]) -> 100% | Z24: =SUBTOTAL(109,tblExpenses[сеп % ]) -> 100% | AA24: =SUBTOTAL(109,tblExpenses[окт % ]) -> 100% | AB24: =SUBTOTAL(109,tblExpenses[ное % ]) -> 100% | AC24: =SUBTOTAL(109,tblExpenses[дек % ]) -> 100% | AD24: =SUBTOTAL(109,tblExpenses[годишен %]) -> 100%
B26: Нетна печалба | D26: ='Себестойност на продажбите'!$D$14-tblExpenses[[#Totals],[Яну]] -> 123 лв. | E26: ='Себестойност на продажбите'!E14-tblExpenses[[#Totals],[Фев]] -> 175 лв. | F26: ='Себестойност на продажбите'!F14-tblExpenses[[#Totals],[Мар]] -> 256 лв. | G26: ='Себестойност на продажбите'!G14-tblExpenses[[#Totals],[Апр]] -> 109 лв. | H26: ='Себестойност на продажбите'!H14-tblExpenses[[#Totals],[Май]] -> 156 лв. | I26: ='Себестойност на продажбите'!I14-tblExpenses[[#Totals],[Юни]] -> -8 лв. | J26: ='Себестойност на продажбите'!J14-tblExpenses[[#Totals],[Юли]] -> 32 лв. | K26: ='Себестойност на продажбите'!K14-tblExpenses[[#Totals],[Авг]] -> 214 лв. | L26: ='Себестойност на продажбите'!L14-tblExpenses[[#Totals],[Сеп]] -> 100 лв. | M26: ='Себестойност на продажбите'!M14-tblExpenses[[#Totals],[Окт]] -> 148 лв. | N26: ='Себестойност на продажбите'!N14-tblExpenses[[#Totals],[Ное]] -> 179 лв. | O26: ='Себестойност на продажбите'!O14-tblExpenses[[#Totals],[Дек]] -> 359 лв. | P26: =SUM(D26:O26) -> 1,843 лв. | R26: =D26/$P$26 -> 7% | S26: =E26/$P$26 -> 9% | T26: 14% | U26: 6% | V26: 8% | W26: -0% | X26: 2% | Y26: 12% | Z26: 5% | AA26: 8% | AB26: 10% | AC26: 19% | AD26: 100%
